Cogmind - Beta 13 @@@ ROGUE MODE // 2024.04.10 @ 12:37:06 Player: JackieG Result: Destroyed by G-34 Mercenary with Small Laser Performance ------------- Evolutions (0) 0 Regions Visited (2) 400 Robots Destroyed (19) 95 Value Destroyed (450) 450 Prototype IDs (2) 40 Alien Tech Used (0) 0 Bonus (0) 0 TOTAL SCORE: 985 Bonus ------- None Cogmind --------- Core Integrity 0/250 Matter 240/300 Energy 100/100 System Corruption 0% Temperature Cool (6) Movement Core (200) Ox3 Location -10/Mines Parts ------- > --- POWER (1) -------- (None) > --- PROPULSION (2) --- (None) > --- UTILITY (2) ------ Medium Storage Unit Hacking Suite > --- WEAPON (2) ------- Small Laser > --- INVENTORY (10) --- Ion Engine Light Treads Aluminum Leg Improved Heat Sink Medium Storage Unit Light Armor Plating Assault Rifle Datajack Peak State ------------ > --- POWER ------------ Light Nuclear Core > --- PROPULSION ------- Light Treads Light Treads > --- UTILITY ---------- Small Storage Unit Hacking Suite > --- WEAPON ----------- Assault Rifle Light Assault Rifle > --- INVENTORY -------- Ion Engine Light Treads Aluminum Leg Aluminum Leg Improved Heat Sink Small Laser Light Assault Rifle Datajack [Rating: 12] Favorites ----------- Power Light Nuclear Core Engine Ion Engine Power Core Light Nuclear Core Propulsion Light Treads Treads Light Treads Utility Hacking Suite Device Heat Sink Storage Medium Storage Unit Hackware Hacking Suite Weapon Assault Rifle Energy Gun Small Laser Ballistic Gun Assault Rifle Launcher Rocket Launcher Build | -11 -10 -10 ------- Run | Yrd Mat Min Slots Evolved . | . . . Power . | . . . Propulsion . | . . . Utility . | . . . Weapon . | . . . Parts Attached 17 | 6 3 8 Power 2 | 1 1 . Engine 1 | 1 . . Core 1 | . 1 . Reactor . | . . . Propulsion 3 | 2 . 1 Treads 3 | 2 . 1 Leg . | . . . Wheel . | . . . Hover . | . . . Flight . | . . . Utility 4 | 1 2 1 Device 1 | . 1 . Storage 2 | 1 . 1 Processor . | . . . Hackware 1 | . 1 . Protection . | . . . Artifact . | . . . Weapon 8 | 2 . 6 Energy Gun 2 | . . 2 Energy Cannon . | . . . Ballistic Gun 5 | 2 . 3 Ballistic Cannon . | . . . Launcher 1 | . . 1 Special Weapon . | . . . Impact Weapon . | . . . Slashing Weapon . | . . . Piercing Weapon . | . . . Special Melee Weapon . | . . . Unidentified Prototypes . | . . . Parts Lost 6 | . . 6 Power 1 | . . 1 Propulsion 2 | . . 2 Utility . | . . . Weapon 3 | . . 3 Highest Loss Streak 6 | . . 6 To Critical Strikes . | . . . Average Slot Usage (%) 96 | . 92 97 Engine 3 | . 11 . Core 10 | . 2 13 Treads 27 | . 28 26 Device 1 | . 3 . Storage 14 | . 14 14 Hackware 11 | . 3 14 Energy Gun 3 | . . 4 Ballistic Gun 24 | . 28 23 Naked Turns . | . . . Heaviest Build 18 | 13 14 18 Greatest Support 40 | 40 40 40 Greatest Overweight (x) 3 | 2 . 3 Average Overweight (x) . | . . . Largest Inventory Capacity 10 | 8 8 10 Average Capacity 9 | 7 8 9 Most Carried 10 | 7 8 10 Average Carried 8 | 3 6 9 Final Capacity 10 | 8 8 10 Final Carried 8 | 4 8 8 Class Distribution -------------------- 100% | Mutant Dominant Class ---------------- Mutant | -10/Materials Mutant | -10/Mines Resources | -11 -10 -10 ----------- Run | Yrd Mat Min Matter Collected 650 | 226 192 232 Remotely . | . . . Salvage Created 593 | . 240 353 Parts 38 | . 19 19 Haulers Intercepted 1 | . 1 . Recyclers Shooed . | . . . Parts Field Recycled . | . . . Retrieved Matter . | . . . Parts Self-Destructed . | . . . Prevented . | . . . Kills | -11 -10 -10 ------- Run | Yrd Mat Min Combat Hostiles Destroyed 15 | . 6 9 Guns 14 | . 6 8 AOE 1 | . . 1 Classes Destroyed 7 | . 4 3 Worker 1 | . . 1 Tunneler 2 | . . 2 Hauler 1 | . 1 . Operator 1 | . 1 . Swarmer 3 | . 3 . Grunt 11 | . 3 8 Assembled 1 | . . 1 Best Kill Streak 7 | . 3 7 Combat Bots Only 4 | . 3 4 Max Kills in Single Turn 4 | . 1 4 Gunslinging . | . . . Exploded 1 | . . 1 Melee . | . . . Uniques/NPCs Destroyed . | . . . Combat | -11 -10 -10 -------- Run | Yrd Mat Min Hostile Shots Fired 88 | . 27 61 Missed 18 | . 4 14 Damage Taken 986 | . 238 748 Core 255 | . 40 215 Absorbed by Shields . | . . . Core Remaining (%) 100 | 100 . . Volleys Fired 128 | . 32 96 Largest 2 | . 2 2 Hottest 60 | . 40 60 Shots Fired 210 | . 64 146 Gun 204 | . 64 140 Cannon . | . . . Launcher 6 | . . 6 Special . | . . . Kinetic 150 | . 64 86 Thermal 54 | . . 54 Explosive 6 | . . 6 Electromagnetic . | . . . Robot Hit Streak 15 | . 10 15 Robot Miss Streak 3 | . 3 2 Penetration Max . | . . . Secondary Targets . | . . . Shots Hit Robots 91 | . 42 49 Core Hits 36 | . 15 21 Critical Kills . | . . . Critical Parts Destroyed 3 | . 2 1 Critical Strikes 3 | . 2 1 Destroy 3 | . 2 1 Melee Attacks . | . . . Impact . | . . . Slashing . | . . . Piercing . | . . . Sneak Attacks . | . . . Combat Hostiles . | . . . Follow-up Attacks . | . . . Damage Inflicted 1193 | . 458 735 Guns 932 | . 458 474 Cannons . | . . . Explosions 261 | . . 261 Melee . | . . . Ramming . | . . . Kinetic 897 | . 458 439 Thermal 35 | . . 35 Explosive 261 | . . 261 Electromagnetic . | . . . Impact . | . . . Slashing . | . . . Piercing . | . . . Highest Corruption . | . . . Average Corruption . | . . . Corruption Purged . | . . . Corruption Blocked . | . . . Overload Shots . | . . . Overflow Damage 12 | . . 12 Projectiles . | . . . Explosions 12 | . . 12 Melee . | . . . Knockbacks . | . . . Impact . | . . . Kinetic . | . . . Secondary . | . . . Self-Inflicted Damage 125 | . . 125 Shots 5 | . . 5 Rammed . | . . . Targets Rammed . | . . . Kicked . | . . . Crushed . | . . . Highest Temperature 224 | . 15 224 Average Temperature 66 | . 8 70 Received Heat Transfer 354 | . 102 252 Siege Activations . | . . . Robots Corrupted . | . . . Combat Hostiles . | . . . Parts Fried . | . . . Impact Corruptions . | . . . Robots Melted . | . . . Combat Hostiles . | . . . Parts Melted . | . . . Heat Transferred 75 | . . 75 Parts Sabotaged . | . . . Parts Stolen . | . . . Parts Stripped . | . . . Power Chain Reactions . | . . . Alert | -11 -10 -10 ------- Run | Yrd Mat Min Peak Influence 157 | . 157 80 Initial 25 | . . 25 Average 26 | . 53 17 Maximum Alert Level . | . . . Low Security (%) 100 | 100 100 100 Level 1 . | . . . Level 2 . | . . . Level 3 . | . . . Level 4 . | . . . Level 5 . | . . . High Security . | . . . Max Security . | . . . Squads Dispatched 1 | . 1 . Investigation . | . . . Extermination . | . . . Reinforcement 1 | . 1 . Assault . | . . . Garrison . | . . . Intercept . | . . . Searches Triggered . | . . . Construction Impeded . | . . . Haulers Reinforced . | . . . Active Scanning Responses . | . . . Cargo Convoy Interrupts . | . . . Stealth | -11 -10 -10 --------- Run | Yrd Mat Min Distress Signals 1 | . 1 . Communications Jammed . | . . . Distress Signals . | . . . Times Spotted 23 | . 13 10 Peak Tracking Total 4 | . 4 3 Tactical Retreats 1 | . 1 . Traps | -11 -10 -10 ------- Run | Yrd Mat Min Traps Triggered . | . . . Indirectly . | . . . Trap Hack Attempts . | . . . Triggered . | . . . Disarmed . | . . . Reprogrammed . | . . . Reused . | . . . Traps Extracted . | . . . Installed . | . . . Triggered 2 | . . 2 Machines | -11 -10 -10 ---------- Run | Yrd Mat Min Machines Disabled . | . . . Max in Single Turn . | . . . Machines Repaired . | . . . Machines Dismantled . | . . . Machines Sabotaged . | . . . Overloaded Fab Kills . | . . . Hacking | -11 -10 -10 --------- Run | Yrd Mat Min Machines Accessed 2 | . 1 1 Terminals 2 | . 1 1 Fabricators . | . . . Repair Stations . | . . . Recycling Units . | . . . Scanalyzers . | . . . Garrison Access . | . . . Total Hacks 10 | . 7 3 Successful 6 | . 3 3 Failed 4 | . 4 . Catastrophic 1 | . 1 . Database Lockouts . | . . . Manual 1 | . . 1 Terminals 10 | . 7 3 Fabricators . | . . . Repair Stations . | . . . Recycling Units . | . . . Scanalyzers . | . . . Garrison Access . | . . . Terminal Hacks 5 | . 3 2 Record 4 | . 2 2 Prototype ID Bank 1 | . 1 . Fabricator Hacks . | . . . Repair Station Hacks . | . . . Recycling Unit Hacks . | . . . Scanalyzer . | . . . Garrison Access Hacks . | . . . Unauthorized Hacks 1 | . . 1 Terminals 1 | . . 1 Botnet 1 | . . 1 Fabricators . | . . . Repair Stations . | . . . Recycling Units . | . . . Scanalyzers . | . . . Garrison Access . | . . . Data Cores Recovered . | . . . Used . | . . . Hacking Detections 1 | . 1 . Full Trace Events 1 | . 1 . Feedback Events . | . . . Feedback Blocked . | . . . Robot Schematics Acquired . | . . . Robots Built . | . . . Authchips . | . . . Time . | . . . Total Robot Build Rating . | . . . Part Schematics Acquired . | . . . Parts Built . | . . . Authchips . | . . . Time . | . . . Total Part Build Rating . | . . . Parts Repaired . | . . . Time . | . . . Parts Recycled . | . . . Recycled Matter . | . . . Retrieved Matter . | . . . Retrieved Components . | . . . Parts Scanalyzed . | . . . Part Schematics Acquired . | . . . Parts Damaged . | . . . Bothacking | -11 -10 -10 ------------ Run | Yrd Mat Min Used RIF Installer . | . . . Robots Hacked . | . . . Non-combat . | . . . Combat . | . . . Robot Hacks Applied . | . . . Relay Couplers Released . | . . . Fabnet Peak Effective % . | . . . Robots Rewired . | . . . Allies Hacked . | . . . Hacks Repelled . | . . . Allies | -11 -10 -10 -------- Run | Yrd Mat Min Total Allies . | . . . Largest Group . | . . . Highest-Rated Group . | . . . Highest-Rated Ally . | . . . Total Orders . | . . . Ally Attacks . | . . . Total Damage . | . . . Kills . | . . . Allies Corrupted . | . . . Allies Melted . | . . . Intel | -11 -10 -10 ------- Run | Yrd Mat Min Robot Analysis Total . | . . . Derelict Logs Recovered . | . . . Drone Launches . | . . . Drone Recoveries . | . . . Exploration | -11 -10 -10 ------------- Run | Yrd Mat Min Turns Passed 1887 | 98 491 1298 Spaces Moved 496 | 64 240 192 Core 54 | 41 . 13 Treads 442 | 23 240 179 Legs . | . . . Wheels . | . . . Hover . | . . . Flight . | . . . Fastest Speed 50 | 50 160 160 Average Speed 157 | 132 160 162 Slowest Speed 200 | 160 160 200 Overloaded Moves . | . . . Propulsion Burnouts . | . . . Robots Hopped . | . . . Cave-ins Triggered . | . . . Exploration Rate (%) 20 | 5 33 23 Regions Visited 2 Branch Regions 1 Pre-discovered Areas . | . . . Known Exits Taken . | . . . Unknown Exits Taken 2 | 1 1 . Scrap Searched 1 | . . 1 Spaces Dug . | . . . Terrain Destroyed 37 | . . 37 Melee . | . . . Projectile . | . . . AOE 37 | . . 37 Terrain Rammed . | . . . Walls Destroyed . | . . . Machines Disabled . | . . . Actions | -11 -10 -10 --------- Run | Yrd Mat Min Total 1404 | 76 290 1038 Wait 742 | . 8 734 Move 494 | 63 239 192 Hop . | . . . Pick Up 18 | 7 6 5 Fast Attach 4 | 3 1 . Attach 6 | 3 1 2 Detach . | . . . Swap 7 | . 1 6 Drop 5 | . 2 3 Fire 128 | . 32 96 Melee . | . . . Ram . | . . . Kick . | . . . Crush . | . . . Escape Stasis . | . . . Rewire . | . . . Trap . | . . . Miscellaneous . | . . . Route ------- -11/Scrapyard -10/Materials (discovered 2 exits: *Min x2) -10/Mines History --------- Turn | Location | Event 9 | -11/Scrapyard | Discovered new exit (range 16) 99 | -11/Scrapyard | Entered Materials 244 | -10/Materials | Discovered new exit (range 12) 309 | -10/Materials | Build established: Mutant 321 | -10/Materials | Discovered new exit (range 8) 590 | -10/Materials | Entered Mines 620 | -10/Mines | Received a Rocket Launcher from a helpful Derelict 834 | -10/Mines | Excavation squad dispatched 834 | -10/Mines | A large section of the Mines collapsed 1084 | -10/Mines | Excavation squad dispatched 1334 | -10/Mines | Excavation squad dispatched 1584 | -10/Mines | Excavation squad dispatched 1825 | -10/Mines | Core integrity fell below 50% 1834 | -10/Mines | Excavation squad dispatched 1848 | -10/Mines | Core integrity fell below 20% 1888 | -10/Mines | Destroyed by G-34 Mercenary with Small Laser Last Messages --------------- Destroyed Mining Laser. T-07 Excavator destroyed. K-01 Serf destroyed. ALERT: Derelict activity in mines confirmed. Dispatching additional escorted excavation squad. Lgt. Nuclear Core destroyed. Rocket Launcher destroyed. Destroyed Rocket Launcher. Lgt. Treads destroyed. Destroyed Lgt. Treads. The unstable cave ceiling collapses. G-34 Mercenary destroyed. The unstable cave ceiling collapses. Lgt. Assault Rifle destroyed. G-34 Mercenary destroyed. Acquired 46 matter. U-05 Engineer lays Concrete. U-05 Engineer builds a Wall. U-05 Engineer lays Concrete. Map ----- +----------------------------------------------------+ | ??# #??????## #?????? | | ??# ! #???????# #?????? | | ??# !! ##??????# ##????? | | ??# ##?????# ##???? | | ??# ! #????## #???? | | ??# ! % ### #????# #???? | | ??########?## #????# ####???? | | ???#T######?# #????# #!%#???? | | ???# #?# #????# =%!#???? | | ???# #?# #????####%!##??? | | ???# #?# #????##![*%[##?? | | ???# #?# #?????# *=*|=##? | | ???# ### #?????# | #? | | ???#### ## ##????# " "#? | | ??????# % ####?##= ## | | ?????## ! ##?##%% ## | | ?????# != !%==[####*[ # | | ?????# =%= !|%!! |%! # | | ?????## [* =* t=%==*= ## | | ?????## =%=%!=#######"####? | | ??##?# ! == #?????####??? | | ### ## #???????????? | | # # #???????????? | | # #???????????? | | # % #???????????? | | # @ ##???????????? | | # u u ##????????????? | | ?### ## gt=# #?????????????? | | ??###?####=# ##?????????????? | | ?????????#*#####??????????????? | | ?????????#%#??????????????????? | | ?????????#!#??????????????????? | | ?????????#!=??????????????????? | | ?????????###??????????????????? | | ??????????????????????????????? | | ??????????????????????????????? | | ??????????????????????????????? | | ??????????????????????????????? | | ??????????????????????????????? | | ??????????????????????????????? | | ??????????????????????????????? | | ??????????????????????????????? | | ??????????????????????????????? | | ??????????????????????????????? | | ??????????????????????????????? | | ??????????????????????????????? | | ??????????????????????????????? | | ??????????????????????????????? | | ??????????????????????????????? | | ??????????????????????????????? | +----------------------------------------------------+ Best States ------------- Heat Dissipation 35 Energy Generation 14 Energy Capacity 250 Matter Stores 300 Matter Capacity 300 Sight Range 16 Terrain Scan Density 10 Evasion (%) 50 Recoil Reduction 2 Offensive Hacking 10 Item Schematics ----------------- None Robot Schematics ------------------ None Fabricated ------------ Nothing Alien Tech Used ----------------- None Achievements -------------- None Challenges ------------ None Game ------ Seed EncryptedMakeshiftTearclaws Manual? 0 Play Time 00:13:08 Cumulative 19.2 hours Start 2024.04.10 @ 12:17:12 End 2024.04.10 @ 12:37:06 Sessions 1 Manual Loads 0 Difficulty Rogue Special Mode None Game No. 22 Rogue 19 Adventurer 3 Explorer 0 Win Type - Total 0 Types 0/0/0/0/0/0/0/0/0 Lore% 22 Gallery% 23 Achievement% 20 Wizard Run 0 Options --------- Layout 1 ASCII 0 Keyboard 0 Movement Mouse Keybinds 0 Fullscreen 1 Font 24/Smallcaps Map View 50x35 Zoom Use 0% Tactical HUD 0 Map Filters NONE Filters NONE Steam 1 RUN: fb143895-1c39-42ae-8f83-5f3b38e22a96